fUST/lending_fUST_20240417
["ID","MTS","AMOUNT","RATE_DAILY","PERIOD"]
[322823199,1713366641703,-166.82709291,0.00028762,4]
[322823200,1713366641713,-150.0,0.00028999,2]
[322823201,1713366641725,-1206.79320679,0.00029003,30]
[322823202,1713366641734,-166.666666,0.00029321,2]
[322823203,1713366641744,-307.12403441,0.00029899,2]
[322823204,1713366641757,-253.30581222,0.000299,2]
[322823205,1713366641768,-253.30581221,0.000299,2]
[322823206,1713366641778,-253.30581221,0.000299,2]
[322823207,1713366641789,-253.30581221,0.000299,2]
[322823208,1713366641798,-253.30581221,0.000299,2]
[322823209,1713366641807,-253.30581221,0.000299,2]
[322823210,1713366641817,-253.30581221,0.000299,2]
[322823211,1713366641826,-166.666666,0.00029962,2]
[322823212,1713366641836,-150.0,0.00029999,2]
[322823213,1713366641846,-154.86062544,0.0003,2]
[322823214,1713366641856,-500.0,0.0003,2]
[322823215,1713366641866,-235.0,0.0003,2]
[322823216,1713366641876,-197.0490154,0.00030137,2]
[322823217,1713366641886,-166.666666,0.00030603,2]
[322823218,1713366641897,-417.0,0.000307,2]
[322823219,1713366641907,-320.4553623,0.000308,10]
[322823220,1713366641916,-154.86062544,0.0003189,10]
[322823221,1713366641926,-191.18536531,0.00032,4]
[322823222,1713366641936,-1211.15229029,0.00032,3]
[322823223,1713366641946,-361.56889443,0.00032,3]
[322823224,1713366641956,-14058.30363324,0.00032279,10]
[322823225,1713366641967,-1122.530758,0.00032877,2]
[322823226,1713366641977,-1122.530758,0.00032877,2]
[322823227,1713366641987,-1122.530758,0.00032877,2]
[322823228,1713366641997,-1122.530758,0.00032877,2]
[322823229,1713366642007,-1122.530758,0.00032877,2]
[322823230,1713366642018,-1122.530758,0.00032877,2]
[322823231,1713366642028,-1122.530758,0.00032877,2]
[322823232,1713366642038,-1122.530758,0.00032877,2]
[322823233,1713366642048,-1122.530758,0.00032877,2]
[322823234,1713366642058,-1122.530758,0.00032877,2]
[322823235,1713366642068,-1122.530758,0.00032877,2]
[322823236,1713366642078,-1122.530758,0.00032877,2]
[322823237,1713366642088,-1122.530758,0.00032877,2]
[322823238,1713366642098,-1122.530758,0.00032877,2]
[322823239,1713366642109,-1122.530758,0.00032877,2]
[322823240,1713366642118,-1122.530758,0.00032877,2]
[322823241,1713366642130,-1122.530758,0.00032877,2]
[322823242,1713366642139,-1122.530758,0.00032877,2]
[322823243,1713366642149,-1122.530758,0.00032877,2]
[322823244,1713366642159,-1122.530757,0.00032877,2]
[322823245,1713366642169,-5200.0,0.000329,9]
[322823246,1713366642178,-235.0,0.00033,2]
[322823247,1713366642188,-235.0,0.00033,2]
[322823249,1713366642198,-153.0,0.00033121,2]
[322823251,1713366642210,-324.970306,0.00033165,2]
[322823253,1713366642221,-409.676525,0.00033165,2]
[322823255,1713366642230,-160.941151,0.00033486,2]
[322823257,1713366642239,-417.0,0.000337,2]
[322823260,1713366642249,-418.64568665,0.0003392,3]
[322823263,1713366642258,-465.62426375,0.00034,4]
[322823266,1713366642267,-774.84313601,0.00034,60]
[322823269,1713366642276,-264.723089,0.00034,17]
[322823272,1713366642286,-1351.51924304,0.00034064,4]
[322823276,1713366642295,-153.0,0.00034219,2]
[322823279,1713366642305,-153.0,0.00034219,2]
[322823282,1713366642315,-54099.7343,0.00034271,30]
[322823284,1713366642324,-9878.30913613,0.00034555,10]
[322823325,1713366642689,-3742.37168361,9.21e-05,2]
[322823327,1713366642700,-253.30581221,0.000299,2]
[322823334,1713366642709,-122.05744547,0.00034555,10]
[322823336,1713366642812,-15866.50850268,0.00034555,10]
[322823339,1713366642822,-153.0,0.00034767,2]
[322823341,1713366642833,-1000.0,0.000348,3]
[322823343,1713366642843,-1000.0,0.000348,3]
[322823345,1713366642853,-1000.0,0.000348,3]
[322823349,1713366642862,-1187.55,0.00034899,2]
[322823352,1713366642873,-1187.55,0.00034899,2]
[322823354,1713366642883,-1187.55,0.00034899,2]
[322823358,1713366642894,-1187.55,0.00034899,2]
[322823360,1713366642904,-1187.55,0.00034899,2]
[322823363,1713366642914,-1187.55,0.00034899,2]
[322823366,1713366642924,-1187.55,0.00034899,2]
[322823367,1713366642934,-1187.55,0.00034899,2]
[322823369,1713366642944,-1187.55,0.00034899,2]
[322823371,1713366642954,-1187.55,0.00034899,2]
[322823373,1713366642964,-63584.15694835,0.000349,2]
[322823376,1713366642979,-127773.94670033,0.00034996,2]
[322823378,1713366642989,-6874.43086894,0.00035,4]
[322823380,1713366642998,-214.26513963,0.00035,4]
[322823382,1713366643008,-597.24868455,0.00035,2]
[322823384,1713366643017,-498.64208688,0.00035,2]
[322823386,1713366643026,-218.0,0.00035,10]
[322823387,1713366643035,-7302.12935752,0.00035,4]
[322823390,1713366643047,-1186.56,0.00035,4]
[322823498,1713366644035,-4243.69650892,0.00035,4]
[322823500,1713366644044,-146322.83844407,0.00035,30]
[322823521,1713366644235,-65234.52100284,0.00035,30]
[322825245,1713367832051,-329.16322832,0.00012677,2]
[322825249,1713367832079,-5307.75068261,0.00012677,2]
[322825381,1713367838143,-965.39339888,0.00012676,2]
[322825383,1713367838152,-203.92427323,0.00012676,2]
[322825384,1713367838163,-762.35656093,0.00012677,2]
[322825392,1713367838246,-1459.28320092,0.00012677,2]
[322825394,1713367838257,-351.3027513,0.00012677,2]
[322825396,1713367838266,-13.56187989,0.00012678,2]
[322825398,1713367838278,-315.79282226,0.00012678,2]
[322825400,1713367838293,-521.0,0.00012678,2]
[322825402,1713367838302,-539.22318272,0.00012678,2]
[322825404,1713367838312,-525.74547902,0.00012678,2]
[322825405,1713367838321,-199.22367418,0.00012678,2]
[322825651,1713367841265,-1818.21,0.00012675,2]
[322825675,1713367841492,-766.73589356,0.00012675,2]
[322825677,1713367841502,-567.89051829,0.00012678,2]
[322825680,1713367841512,-4399.27499072,0.00012678,2]
[322826045,1713367843681,-163.98644275,0.00012677,2]
[322826048,1713367843691,-1851.76476,0.00012678,2]
[322826051,1713367843703,-5472.49728619,0.00012678,2]
[322826054,1713367843716,-1210.0,0.00012678,2]
[322826234,1713367847135,-469.12528489,0.00012677,2]
[322826237,1713367847145,-1936.9647153,0.00012678,2]
[322826275,1713368895888,-154.86062544,9.951e-05,2]
[322826276,1713368895911,-154.86062544,9.951e-05,2]
[322826277,1713368895934,-163.98644275,9.951e-05,2]
[322826278,1713368895956,-519.26461656,9.952e-05,2]
[322826279,1713368895978,-521.0,9.952e-05,2]
[322826280,1713368896001,-308.13476314,9.952e-05,2]
[322826281,1713368896022,-2621.14214872,9.952e-05,2]
[322826282,1713368896044,-1575.3401522,9.952e-05,2]
[322826283,1713368896064,-300.0,9.953e-05,2]
[322826284,1713368896090,-157.04962732,9.953e-05,2]
[322826285,1713368896111,-203.60696342,9.953e-05,2]
[322826286,1713368896132,-207.65285215,9.953e-05,2]
[322826287,1713368896153,-211.83113783,9.953e-05,2]
[322826288,1713368896174,-246.93293796,9.953e-05,2]
[322826289,1713368896196,-300.0,9.954e-05,2]
[322826290,1713368896217,-193.3820055,9.954e-05,2]
[322826291,1713368896238,-965.39339888,9.954e-05,2]
[322826292,1713368896258,-1359.56170269,9.954e-05,2]
[322826367,1713369032673,-211.83113783,9.935e-05,2]
[322826369,1713369032683,-154.86062544,9.935e-05,2]
[322826371,1713369032692,-882.7275178,9.935e-05,2]
[322826373,1713369032702,-563.87316233,9.936e-05,2]
[322826375,1713369032711,-329.35470215,9.936e-05,2]
[322826377,1713369032719,-154.86062544,9.937e-05,2]
[322826379,1713369032729,-207.65285215,9.937e-05,2]
[322826381,1713369032739,-154.86062544,9.937e-05,2]
[322826384,1713369032748,-3992.15074316,9.937e-05,2]
[322826386,1713369032759,-3866.40292962,9.937e-05,2]
[322826387,1713369032769,-167.52776302,9.938e-05,2]
[322826389,1713369032778,-1488.61335239,9.938e-05,2]
[322826391,1713369032787,-3742.37168361,9.938e-05,2]
[322826393,1713369032796,-351.3027513,9.939e-05,2]
[322826394,1713369032806,-2125.76560283,9.939e-05,2]
[322826396,1713369032815,-282.61591723,9.939e-05,2]
[322826397,1713369032828,-17.38408277,9.939e-05,2]
[322826398,1713369032837,-300.0,9.939e-05,2]
[322826400,1713369032846,-98.00226379,9.94e-05,2]
[322826402,1713369032858,-2486.94362977,9.94e-05,2]
[322826404,1713369032867,-161.84978394,9.94e-05,2]
[322826405,1713369032876,-659.43850789,9.94e-05,2]
[322826406,1713369032885,-539.22318272,9.941e-05,2]
[322826408,1713369032894,-59089.3083695,9.941e-05,2]
[322826410,1713369032903,-72389.02048931,9.941e-05,2]
[322826412,1713369032914,-1741.14825771,9.941e-05,2]
[322826413,1713369032923,-31262.99119214,9.942e-05,2]
[322826414,1713369032932,-1611.40303377,9.956e-05,2]
[322826415,1713369032942,-156.9143827,9.956e-05,2]
[322826416,1713369032951,-236.36856074,9.956e-05,2]
[322826417,1713369032961,-993.88087439,9.956e-05,2]
[322826418,1713369032970,-193.3820055,9.956e-05,2]
[322826419,1713369032980,-154.8915728,9.956e-05,2]
[322826420,1713369032990,-352.80482313,9.956e-05,2]
[322826421,1713369032999,-300.34679816,9.956e-05,2]
[322826422,1713369033008,-327.86305496,9.956e-05,2]
[322826423,1713369033018,-187.26593997,9.956e-05,2]
[322826424,1713369033027,-203.59775165,9.956e-05,2]
[322826425,1713369033036,-249.44985366,9.961e-05,2]
[322826426,1713369033046,-1310.15475715,0.0001,2]
[322826427,1713369033055,-767.11419247,0.0001,2]
[322826428,1713369033064,-767.11419247,0.0001,2]
[322826429,1713369033074,-203.3150893,0.00010077,2]
[322826430,1713369033083,-1157.23664915,0.00010091,2]
[322826431,1713369033093,-608.10496208,0.00010174,2]
[322826432,1713369033103,-1669.42037848,0.00010174,2]
[322826433,1713369033112,-351.53474804,0.00010187,2]
[322826434,1713369033122,-190.3316928,0.00010313,2]
[322826435,1713369033131,-658.58127374,0.00010313,2]
[322826488,1713369038407,-1089.26071762,9.934e-05,2]
[322826490,1713369038419,-408.43488901,9.934e-05,2]
[322826492,1713369038428,-469.12528489,9.934e-05,2]
[322826494,1713369038438,-650.25529054,9.935e-05,2]
[322826496,1713369038447,-612.93538696,0.00010313,2]
[322826498,1713369038457,-24900.0,0.00010313,2]
[322826500,1713369038466,-420.0,0.00010933,2]
[322826503,1713369038475,-420.0,0.00010933,2]
[322826506,1713369038485,-188.6288603,0.00011297,2]
[322826509,1713369038494,-390.38555253,0.00011297,2]
[322826512,1713369038503,-299.82752621,0.00011395,2]
[322826514,1713369038513,-185.53125817,0.00011395,2]
[322826516,1713369038522,-587.0,0.00012026,2]
[322826518,1713369038532,-587.0,0.00012026,2]
[322826520,1713369038542,-154.87609812,0.00012678,2]
[322826522,1713369038551,-15210.21413881,0.00012678,2]
[322826524,1713369038561,-168.00504498,0.00012678,2]
[322826526,1713369038570,-525.62755564,0.00012681,2]
[322826528,1713369038579,-218.89729181,0.00012681,2]
[322826530,1713369038589,-172.24968334,0.00012681,2]
[322826532,1713369038598,-194.20998821,0.00012681,2]
[322826534,1713369038607,-1933.58973003,0.00012681,2]
[322826536,1713369038616,-307.12403441,0.00012681,2]
[322826538,1713369038626,-3939.26006895,0.00012682,2]
[322826540,1713369038635,-823.0,0.00013229,2]
[322826542,1713369038645,-823.0,0.00013229,2]
[322826544,1713369038654,-154.87609912,0.00013689,2]
[322826546,1713369038664,-2728.0390157,0.00013699,2]
[322826549,1713369038678,-1572.071504,0.00013699,2]
[322826550,1713369038687,-926.63477986,0.00014,2]
[322826552,1713369038697,-1741.14825767,0.00014356,2]
[322826554,1713369038706,-1152.0,0.00014552,2]
[322826557,1713369038715,-1152.0,0.00014552,2]
[322826559,1713369038724,-154.86062544,0.00015,2]
[322826561,1713369038734,-937.89373734,0.00015,2]
[322826562,1713369038743,-156.84586358,0.00015,2]
[322826564,1713369038753,-2096.98803724,0.00015,2]
[322826566,1713369038762,-783.87866091,0.00015,2]
[322826568,1713369038772,-270.01479417,0.00015,2]
[322826571,1713369038781,-167.32835926,0.00015,2]
[322826572,1713369038791,-1613.0,0.00016007,2]
[322826574,1713369038800,-1613.0,0.00016007,2]
[322826576,1713369038810,-2258.0,0.00017608,2]
[322826579,1713369038820,-723.0,0.00017608,2]
[322826581,1713369038830,-602.61216035,0.000185,2]
[322826582,1713369038839,-1741.14825767,0.00018871,2]
[322826584,1713369038848,-5698.08803568,0.000189,2]
[322826585,1713369038858,-188.96976676,0.0001897,2]
[322826586,1713369038868,-1000.0,0.00019,2]
[322826587,1713369038877,-163.73283867,0.00019178,2]
[322826588,1713369038886,-500.0,0.00019178,2]
[322826589,1713369038896,-202.7420538,0.00019178,2]
[322826590,1713369038905,-500.0,0.00019178,2]
[322826591,1713369038914,-500.0,0.00019178,2]
[322826592,1713369038926,-493.31702264,0.00019178,2]
[322826593,1713369038936,-495.98580602,0.00019178,2]
[322826594,1713369038945,-217.65184727,0.00019178,2]
[322826595,1713369038954,-500.0,0.00019178,2]
[322826596,1713369038964,-500.0,0.00019178,2]
[322826597,1713369038973,-327.78737273,0.00019178,2]
[322826598,1713369038983,-500.0,0.00019178,2]
[322826599,1713369038992,-375.41455169,0.00019178,2]
[322826600,1713369039002,-500.0,0.00019178,2]
[322826601,1713369039011,-500.0,0.00019178,2]
[322826602,1713369039019,-500.0,0.00019178,2]
[322826603,1713369039028,-500.0,0.00019178,2]
[322826604,1713369039037,-500.0,0.00019178,2]
[322826605,1713369039047,-500.0,0.00019178,2]
[322826606,1713369039056,-500.0,0.00019178,2]
[322826607,1713369039065,-500.0,0.00019178,2]
[322826608,1713369039075,-500.0,0.00019178,2]
[322826609,1713369039084,-500.0,0.00019178,2]
[322826610,1713369039094,-500.0,0.00019178,2]
[322826611,1713369039103,-348.36923201,0.00019178,2]
[322826612,1713369039112,-500.0,0.00019178,2]
[322826613,1713369039122,-500.0,0.00019178,2]
[322826614,1713369039131,-500.0,0.00019178,2]
[322826615,1713369039140,-500.0,0.00019178,2]
[322826616,1713369039149,-500.0,0.00019178,2]
[322826617,1713369039158,-500.0,0.00019178,2]
[322826618,1713369039170,-500.0,0.00019178,2]
[322826619,1713369039179,-500.0,0.00019178,2]
[322826620,1713369039188,-265.18129038,0.00019178,2]
[322826621,1713369039197,-500.0,0.00019178,2]
[322826622,1713369039207,-500.0,0.00019178,2]
[322826623,1713369039216,-248.26554668,0.00019178,2]
[322826624,1713369039226,-500.0,0.00019178,2]
[322826625,1713369039235,-500.0,0.00019178,2]
[322826626,1713369039244,-500.0,0.00019178,2]
[322826627,1713369039253,-636.01385751,0.00019178,2]
[322826628,1713369039262,-500.0,0.00019178,2]
[322826629,1713369039272,-439.67218834,0.00019178,2]
[322826630,1713369039281,-599.87704222,0.00019178,2]
[322826632,1713369039290,-178.00211012,0.00019178,2]
[322826633,1713369039300,-266.7220136,0.00019178,2]
[322826634,1713369039313,-265.39770589,0.00019178,2]
[322826635,1713369039322,-168.022678,0.00019178,2]
[322826637,1713369039331,-168.527542,0.00019178,2]
[322826638,1713369039342,-169.766033,0.00019178,2]
[322826640,1713369039352,-3162.0,0.00019368,2]
[322826642,1713369039361,-354.39971412,0.0002,2]
[322826644,1713369039370,-688.59429255,0.0002,2]
[322826645,1713369039379,-521.03498526,0.0002,2]
[322826646,1713369039390,-523.80732363,0.0002,4]
[322826647,1713369039399,-155.50621329,0.0002,2]
[322826648,1713369039408,-241.20667916,0.0002,2]
[322826649,1713369039418,-155.04549281,0.0002,2]
[322826650,1713369039429,-277.60171443,0.0002,2]
[322826651,1713369039438,-154.84515485,0.0002,2]
[322826652,1713369039448,-251.73509559,0.0002,2]
[322826653,1713369039457,-154.86062544,0.0002,2]
[322826654,1713369039466,-400.0,0.0002,2]
[322826655,1713369039476,-200.0,0.0002,2]
[322826656,1713369039485,-1572.071504,0.00020548,2]
[322826657,1713369039494,-4427.0,0.00021305,2]
[322826658,1713369039504,-611.8741466,0.00021918,2]
[322826659,1713369039513,-158.857458,0.00022,2]
[322826660,1713369039523,-243.24834116,0.00023,2]
[322826661,1713369039532,-417.0,0.0002321,2]
[322826662,1713369039541,-210.078,0.0002321,2]
[322826663,1713369039550,-1741.14825767,0.00023385,2]
[322826664,1713369039560,-1530.0,0.00023436,2]
[322826665,1713369039569,-1167.04526144,0.00023584,2]
[322826666,1713369039579,-852.35526175,0.00023584,2]
[322826667,1713369039588,-5698.08803568,0.000239,2]
[322826668,1713369039598,-361.53177348,0.00023993,2]
[322826669,1713369039607,-5833.2338895,0.00024658,10]
[322826670,1713369039693,-205.5969494,0.00024658,2]
[322826673,1713369039719,-200.0,0.00024658,2]
[322826675,1713369039728,-200.0,0.00024658,15]
[322826677,1713369039738,-647.35226307,0.00024763,2]
[322826679,1713369039748,-631.61776309,0.00024763,2]
[322826681,1713369039757,-150.84915085,0.00024918,2]
[322826683,1713369039767,-205.76023905,0.00024999,2]
[322826685,1713369039776,-621.36761315,0.00026001,2]
[322826687,1713369039785,-620.58088815,0.00026001,2]
[322826689,1713369039794,-417.0,0.0002621,2]
[322826691,1713369039803,-8507.18295185,0.00027,2]
[322826693,1713369039812,-332.07459253,0.00027,2]
[322826695,1713369039821,-154.84515485,0.00027,2]
[322826697,1713369039831,-620.06838066,0.00027301,2]
[322826698,1713369039841,-500.0,0.00027397,2]
[322826701,1713369039850,-500.0,0.00027397,2]
[322826705,1713369039860,-274.92997743,0.00027397,2]
[322826708,1713369039870,-380.335693,0.00027397,2]
[322826710,1713369039879,-500.0,0.00027397,2]
[322826713,1713369039888,-500.0,0.00027397,2]
[322826715,1713369039898,-500.0,0.00027397,2]
[322826718,1713369039907,-500.0,0.00027397,2]
[322826721,1713369039916,-567.23996731,0.00027397,2]
[322826723,1713369039928,-406.54082323,0.00027397,2]
[322826726,1713369039937,-500.0,0.00027397,2]
[322826728,1713369039946,-500.0,0.00027397,2]
[322826729,1713369039955,-500.0,0.00027397,2]
[322826731,1713369039964,-500.0,0.00027397,2]
[322826733,1713369039973,-500.0,0.00027397,2]
[322826734,1713369039982,-500.0,0.00027397,2]
[322826735,1713369039991,-500.0,0.00027397,2]
[322826736,1713369040001,-500.0,0.00027397,2]
[322826738,1713369040010,-500.0,0.00027397,2]
[322826740,1713369040019,-500.0,0.00027397,2]
[322826741,1713369040028,-500.0,0.00027397,2]
[322826742,1713369040037,-338.46941077,0.00027397,2]
[322826743,1713369040046,-500.0,0.00027397,2]
[322826744,1713369040055,-500.0,0.00027397,2]
[322826745,1713369040064,-500.0,0.00027397,2]
[322826747,1713369040074,-500.0,0.00027397,2]
[322826748,1713369040082,-200.0,0.00027397,2]
[322826749,1713369040091,-500.0,0.00027397,2]
[322826750,1713369040100,-550.0,0.00027397,2]
[322826751,1713369040109,-337.252674,0.00027397,2]
[322826752,1713369040119,-243.732353,0.00027397,2]
[322826753,1713369040128,-1000.0,0.00027397,2]
[322826754,1713369040137,-612.432465,0.00027397,2]
[322826755,1713369040146,-166.666666,0.00027397,2]
[322826756,1713369040156,-803.65147083,0.000275,17]
[322826757,1713369040165,-150.84915085,0.00027687,2]
[322826758,1713369040177,-250.24063936,0.00027687,2]
[322826759,1713369040186,-80000.0,0.00028,2]
[322826760,1713369040195,-151.0,0.00028,2]
[322826761,1713369040203,-151.0,0.00028,2]
[322826762,1713369040212,-151.0,0.00028,2]
[322826763,1713369040221,-151.0,0.00028,2]
[322826764,1713369040231,-1626.560535,0.00028,2]
[322826765,1713369040240,-1626.560535,0.00028,2]
[322826766,1713369040249,-151.0,0.00028,2]
[322826767,1713369040258,-330.0,0.00028,2]
[322826768,1713369040267,-151.0,0.00028,2]
[322826769,1713369040276,-330.0,0.00028,2]
[322826770,1713369040285,-158.870567,0.00028,2]
[322826771,1713369040295,-251.273307,0.00028,2]
[322826772,1713369040304,-151.0,0.00028,2]
[322826773,1713369040315,-151.0,0.00028,2]
[322826774,1713369040325,-6641.672479,0.00028,2]
[322826775,1713369040335,-6641.672479,0.00028,2]
[322826776,1713369040344,-292.35872206,0.00028,2]
[322826777,1713369040354,-1059.226061,0.00028,2]
[322826778,1713369040364,-151.826352,0.00028,2]
[322826779,1713369040373,-1059.226061,0.00028,2]
[322826780,1713369040382,-151.826352,0.00028,2]
[322826781,1713369040391,-166.666666,0.00028038,2]
[322826782,1713369040401,-3999.75123629,0.000281,2]
[322826783,1713369040410,-301.6983017,0.00028152,4]
[322826784,1713369040425,-330.0,0.00028199,2]
[322826785,1713369040434,-151.0,0.00028199,2]
[322826786,1713369040443,-330.0,0.00028199,2]
[322826787,1713369040452,-151.0,0.00028199,2]
[322826788,1713369040462,-151.0,0.00028199,2]
[322826789,1713369040471,-6641.672479,0.00028199,2]
[322826790,1713369040481,-6641.672479,0.00028199,2]
[322826791,1713369040491,-3293.413313,0.00028199,2]
[322826792,1713369040501,-3293.413313,0.00028199,2]
[322826793,1713369040510,-103344.76698872,0.00028199,5]
[322826794,1713369040519,-103249.73217327,0.000282,2]
[322826795,1713369040528,-151.0,0.000282,2]
[322826796,1713369040537,-192.496119,0.000282,2]
[322826797,1713369040547,-332.350975,0.000282,2]
[322826798,1713369040556,-594.772317,0.000282,2]
[322826799,1713369040565,-594.772317,0.000282,2]
[322826800,1713369040574,-332.350975,0.000282,2]
[322826801,1713369040583,-594.772317,0.000282,2]
[322826802,1713369040592,-594.772317,0.000282,2]
[322826803,1713369040601,-332.350975,0.000282,2]
[322826804,1713369040610,-332.350975,0.000282,2]
[322826805,1713369040620,-151.0,0.000282,2]
[322826806,1713369040629,-151.0,0.000282,2]
[322826807,1713369040638,-151.0,0.000282,2]
[322826808,1713369040647,-151.0,0.000282,2]
[322826809,1713369040656,-151.0,0.000282,2]
[322826810,1713369040665,-151.0,0.000282,2]
[322826811,1713369040679,-151.0,0.000282,2]
[322826812,1713369040688,-236.961211,0.000282,2]
[322826813,1713369040696,-236.961211,0.000282,2]
[322826814,1713369040706,-236.961211,0.000282,2]
[322826815,1713369040714,-236.961211,0.000282,2]
[322826816,1713369040723,-151.0,0.000282,2]
[322826817,1713369040733,-151.0,0.000282,2]
[322826818,1713369040742,-151.0,0.000282,2]
[322826819,1713369040751,-151.0,0.000282,2]
[322826820,1713369040760,-151.0,0.000282,2]
[322826821,1713369040769,-151.0,0.000282,2]
[322826822,1713369040778,-151.0,0.000282,2]
[322826823,1713369040787,-151.0,0.000282,2]
[322826824,1713369040796,-151.0,0.000282,2]
[322826825,1713369040806,-151.0,0.000282,2]
[322826826,1713369040818,-1626.560535,0.000282,2]
[322826827,1713369040827,-1626.560535,0.000282,2]
[322826828,1713369040837,-1626.560535,0.000282,2]
[322826829,1713369040846,-1626.560535,0.000282,2]
[322826830,1713369040856,-151.0,0.000282,2]
[322826831,1713369040866,-151.0,0.000282,2]
[322826832,1713369040875,-330.0,0.000282,2]
[322826834,1713369040884,-151.0,0.000282,2]
[322826836,1713369040894,-330.0,0.000282,2]
[322826837,1713369040904,-151.0,0.000282,2]
[322826838,1713369040913,-6641.672479,0.000282,2]
[322826839,1713369040927,-6641.672479,0.000282,2]
[322826840,1713369040937,-1059.226061,0.000282,2]
[322826841,1713369040948,-1059.226061,0.000282,2]
[322826842,1713369040957,-151.826352,0.000282,2]
[322826843,1713369040967,-151.826352,0.000282,2]
[322826844,1713369040977,-1059.226061,0.000282,2]
[322826846,1713369040986,-1059.226061,0.000282,2]
[322826848,1713369040995,-151.826352,0.000282,2]
[322826850,1713369041005,-151.826352,0.000282,2]
[322826852,1713369041014,-289.834412,0.000282,2]
[322826853,1713369041022,-165.291671,0.000282,2]
[322826855,1713369041031,-165.291671,0.000282,2]
[322826856,1713369041041,-165.291671,0.000282,2]
[322826857,1713369041049,-165.291671,0.000282,2]
[322826858,1713369041058,-3293.413313,0.000282,2]
[322826859,1713369041067,-3293.413313,0.000282,2]
[322826860,1713369041077,-603.3966034,0.00028625,7]
[322826861,1713369041086,-620.00341903,0.00028666,2]
[322826862,1713369041095,-150.95011599,0.00028678,2]
[322826864,1713369041105,-166.666666,0.00028679,2]
[322826866,1713369041114,-586.0,0.000288,2]
[322826868,1713369041123,-5698.08803568,0.000289,2]
[322826869,1713369041132,-5000.0,0.00029,2]
[322826870,1713369041141,-166.82709291,0.00029106,4]
[322826871,1713369041150,-417.0,0.0002921,2]
[322826873,1713369041237,-166.666666,0.00029321,2]
[322826874,1713369041247,-1206.79320679,0.0002935,30]
[322826875,1713369041256,-150.0,0.00029678,2]
[322826876,1713369041266,-20000.0,0.0002975,10]
[322826877,1713369041275,-151.826602,0.0002975,2]
[322826878,1713369041285,-525.11720076,0.000299,2]
[322826879,1713369041294,-525.11720074,0.000299,2]
[322826880,1713369041307,-525.11720074,0.000299,2]
[322826881,1713369041316,-525.11720074,0.000299,2]
[322826883,1713369041325,-525.11720074,0.000299,2]
[322826885,1713369041335,-525.11720074,0.000299,2]
[322826887,1713369041345,-525.11720074,0.000299,2]
[322826888,1713369041354,-525.11720074,0.000299,2]
[322826889,1713369041363,-525.11720074,0.000299,2]
[322826890,1713369041372,-525.11720074,0.000299,2]
[322826891,1713369041381,-525.11720074,0.000299,2]
[322826892,1713369041391,-525.11720074,0.000299,2]
[322826893,1713369041401,-525.11720074,0.000299,2]
[322826894,1713369041410,-525.11720074,0.000299,2]
[322826895,1713369041422,-525.11720074,0.000299,2]
[322826896,1713369041431,-525.11720074,0.000299,2]
[322826897,1713369041440,-525.11720074,0.000299,2]
[322826898,1713369041449,-525.11720074,0.000299,2]
[322826899,1713369041458,-525.11720074,0.000299,2]
[322826900,1713369041467,-525.11720074,0.000299,2]
[322826901,1713369041477,-165.291671,0.000299,2]
[322826902,1713369041486,-165.291671,0.000299,2]
[322826903,1713369041495,-3293.413313,0.000299,2]
[322826904,1713369041504,-3293.413313,0.000299,2]
[322826905,1713369041514,-166.666666,0.00029962,2]
[322826906,1713369041523,-154.84515485,0.0003,4]
[322826907,1713369041531,-154.84515485,0.0003,4]
[322826908,1713369041540,-154.84515485,0.0003,2]
[322826909,1713369041550,-9516.05268297,0.0003,30]
[322826910,1713369041559,-154.84515485,0.0003,4]
[322826911,1713369041568,-225.0,0.0003,2]